bitfinex/quotes_BTCUSD_20250802
["timestamp","ask_amount","ask_price","bid_price","bid_amount"]
[1754098937506,0.17583963,113740.0,113730.0,0.03984]
[1754098940805,0.77585972,113750.0,113730.0,0.03984]
[1754098940982,0.80700972,113750.0,113730.0,0.03984]
[1754098941185,0.17583963,113740.0,113730.0,0.03984]
[1754098941395,0.40877677,113750.0,113730.0,0.03984]
[1754098941606,0.80700972,113750.0,113730.0,0.03984]
[1754098942066,0.80800972,113750.0,113730.0,0.03984]
[1754098942893,0.80900972,113750.0,113730.0,0.03984]
[1754098944120,0.7592232,113750.0,113730.0,0.03984]
[1754098946349,0.41077677,113750.0,113730.0,0.03984]
[1754098946528,0.7592232,113750.0,113730.0,0.03984]
[1754098946978,0.7581832,113750.0,113730.0,0.04012]
[1754098948661,0.40973677,113750.0,113730.0,0.04012]
[1754098948866,0.7581832,113750.0,113730.0,0.04012]
[1754098949934,0.40973677,113750.0,113730.0,0.04012]
[1754098950150,0.7581832,113750.0,113730.0,0.04012]
[1754098950576,0.51671643,113750.0,113730.0,0.04012]
[1754098950957,0.70136045,113750.0,113730.0,0.04012]
[1754098952125,0.76320331,113750.0,113730.0,0.04012]
[1754098953667,0.41475688,113750.0,113730.0,0.04012]
[1754098954080,0.76320331,113750.0,113730.0,0.04012]
[1754098956245,0.73309331,113750.0,113740.0,0.00324]
[1754098956449,0.73369331,113750.0,113740.0,0.00324]
[1754098956659,0.76380331,113750.0,113730.0,0.04024]
[1754098957291,0.76280331,113750.0,113730.0,0.04024]
[1754098957499,0.76380331,113750.0,113730.0,0.04024]
[1754098957673,0.76280331,113750.0,113730.0,0.04024]
[1754098957870,0.76180331,113750.0,113730.0,0.04024]
[1754098958075,0.77884675,113750.0,113730.0,0.04024]
[1754098958465,0.77784675,113750.0,113730.0,0.04024]
[1754098958929,0.77884675,113750.0,113730.0,0.04024]
[1754098962501,0.76380331,113750.0,113730.0,0.04024]
[1754098963850,0.38524688,113750.0,113740.0,0.00528]
[1754098964081,0.38520688,113750.0,113740.0,0.00528]
[1754098964289,0.38520688,113750.0,113740.0,0.04228]
[1754098964697,0.20935406,113750.0,113740.0,0.04228]
[1754098964900,0.38417823,113750.0,113740.0,0.04228]
[1754098966030,0.38517823,113750.0,113740.0,0.04228]
[1754098966485,0.19996286,113750.0,113740.0,0.08135264]
[1754098966694,0.06384286,113750.0,113740.0,0.39072643]
[1754098966959,0.03731465,113750.0,113740.0,0.39072643]
[1754098967183,0.03731465,113750.0,113740.0,0.17836]
[1754098967401,0.03731465,113750.0,113740.0,0.52680643]
[1754098967640,0.03631465,113750.0,113740.0,0.61100632]
[1754098967851,0.03631465,113750.0,113740.0,0.61200632]
[1754098968253,0.03631465,113750.0,113740.0,0.61100632]
[1754098968697,0.03531465,113750.0,113740.0,0.61300632]
[1754098969093,0.13608,113760.0,113740.0,0.61600632]
[1754098969518,0.69927725,113770.0,113750.0,0.04024]
[1754098970287,0.73551125,113770.0,113750.0,0.04024]
[1754098970958,0.38706482,113770.0,113750.0,0.04024]
[1754098971179,0.76152164,113770.0,113750.0,0.04024]
[1754098971320,0.41307521,113770.0,113750.0,0.38868643]
[1754098971962,0.41307521,113770.0,113750.0,0.41394967]
[1754098975818,0.38292521,113770.0,113760.0,0.03858]
[1754098976047,0.38292521,113770.0,113760.0,0.04066]
[1754098976249,0.73197164,113770.0,113760.0,0.03858]
[1754098976559,0.38352521,113770.0,113760.0,0.03858]
[1754098976999,0.38352521,113770.0,113760.0,0.03872327]
[1754098981507,0.38352521,113770.0,113760.0,0.04080327]
[1754098993798,0.00879043,113760.0,113730.0,0.03858]
[1754098994025,0.00879043,113760.0,113710.0,0.03858]
[1754098994026,0.17587055,113720.0,113710.0,0.03858]
[1754098994287,0.17647055,113720.0,113710.0,0.12277989]
[1754098995189,0.17647055,113720.0,113710.0,0.03858]
[1754098995610,0.17588602,113710.0,113700.0,0.17472372]
[1754098995847,0.17588602,113710.0,113700.0,0.26100361]
[1754098996915,0.17588602,113710.0,113700.0,0.26300361]
[1754098997054,0.17588602,113710.0,113700.0,0.12700361]
[1754098997055,0.59734975,113710.0,113700.0,0.12700361]
[1754098997299,0.55490245,113710.0,113700.0,0.00214372]
[1754098997566,0.69090245,113710.0,113700.0,0.00214372]
[1754098997866,0.71774753,113710.0,113700.0,0.00514372]
[1754098998697,0.71774753,113710.0,113700.0,0.00014372]
[1754098998902,0.80558803,113710.0,113700.0,0.00214372]
[1754098999119,0.80558803,113710.0,113700.0,0.00314372]
[1754099001895,0.4181204,113710.0,113700.0,0.00314372]
[1754099002084,0.80558803,113710.0,113700.0,0.00314372]
[1754099003581,1.23015792,113710.0,113700.0,0.00314372]
[1754099003820,1.25659092,113710.0,113700.0,0.00314372]
[1754099004333,1.25659092,113710.0,113700.0,0.00214372]
[1754099004812,1.25659092,113710.0,113700.0,0.00014372]
[1754099005030,1.25759092,113710.0,113700.0,0.00014372]
[1754099005680,1.25859092,113710.0,113700.0,0.00014372]
[1754099013081,1.27603994,113710.0,113700.0,0.00014372]
[1754099014008,1.27566994,113710.0,113700.0,0.00014372]
[1754099018148,1.33773424,113710.0,113680.0,0.03694]
[1754099018363,1.33773424,113710.0,113640.0,0.00047884]
[1754099018364,0.17598501,113650.0,113640.0,0.00047884]
[1754099018569,0.17597102,113660.0,113640.0,0.08633989]
[1754099019002,0.17597102,113660.0,113650.0,0.03694]
[1754099019224,0.17597102,113660.0,113650.0,0.03908]
[1754099019419,0.17597102,113660.0,113650.0,0.03955884]
[1754099020149,0.18476918,113660.0,113650.0,0.03955884]
[1754099020782,0.18476918,113660.0,113650.0,0.04055884]
[1754099020978,0.136,113670.0,113650.0,0.05293471]
[1754099021174,0.31194941,113670.0,113650.0,0.01599471]
[1754099021417,0.32073058,113680.0,113660.0,0.42440763]
[1754099021670,0.32073058,113680.0,113670.0,0.03908]
[1754099021922,0.35684099,113680.0,113670.0,0.03908]
[1754099024438,0.35784099,113680.0,113670.0,0.03908]
[1754099025273,0.35780099,113680.0,113670.0,0.03908]
[1754099026056,0.35680099,113680.0,113670.0,0.03908]
[1754099027423,0.35680099,113680.0,113670.0,0.04008]
[1754099033152,0.22084099,113680.0,113670.0,0.04008]
[1754099033352,0.18086703,113680.0,113670.0,0.04008]
[1754099033586,0.17207041,113680.0,113670.0,0.04008]
[1754099033937,0.34800285,113680.0,113670.0,0.04008]
[1754099034144,0.17207041,113680.0,113670.0,0.04008]
[1754099041522,0.17203041,113680.0,113670.0,0.04008]
[1754099041725,0.13592,113680.0,113670.0,0.04008]
[1754099042882,0.03654135,113680.0,113670.0,0.42754763]
[1754099043091,0.65183696,113690.0,113670.0,0.42754763]
[1754099043291,0.13592,113690.0,113680.0,0.03877]
[1754099043501,0.13592,113690.0,113680.0,0.04082]
[1754099043902,0.31183696,113690.0,113680.0,0.04082]
[1754099044994,0.34689303,113690.0,113680.0,0.04082]
[1754099046423,0.34789303,113690.0,113680.0,0.04082]
[1754099046929,0.34689303,113690.0,113680.0,0.04082]
[1754099047382,0.34789303,113690.0,113680.0,0.04082]
[1754099049729,0.17197607,113690.0,113680.0,0.04082]
[1754099053195,0.03605607,113690.0,113680.0,0.04082]
[1754099053705,0.60572874,113700.0,113680.0,0.04082]
[1754099054560,0.64102103,113700.0,113680.0,0.04082]
[1754099054761,0.81695129,113700.0,113680.0,0.04082]
[1754099058358,0.81695129,113700.0,113680.0,0.38957378]
[1754099061197,0.03529229,113700.0,113680.0,0.40649916]
[1754099061418,0.34703378,113700.0,113690.0,0.03877]
[1754099061621,0.31234149,113700.0,113690.0,0.03877]
[1754099061855,0.13644,113700.0,113690.0,0.03877]
[1754099062727,0.13644,113700.0,113690.0,0.03924884]
[1754099063158,0.31174149,113700.0,113690.0,0.04129884]
[1754099063468,0.31234149,113700.0,113690.0,0.04129884]
[1754099063642,0.34747988,113700.0,113690.0,0.04129884]
[1754099064722,0.34743988,113700.0,113690.0,0.04129884]
[1754099065982,0.17093839,113700.0,113690.0,0.04129884]
[1754099067306,0.17093839,113700.0,113690.0,0.04329884]
[1754099067508,0.17093839,113700.0,113690.0,0.04529884]
[1754099071427,0.03513839,113700.0,113690.0,0.04529884]
[1754099071660,0.37598988,113700.0,113690.0,0.00447884]
[1754099071870,0.68960527,113700.0,113690.0,0.00447884]
[1754099072069,0.72569097,113700.0,113690.0,0.00447884]
[1754099076448,0.58993097,113700.0,113690.0,0.00447884]
[1754099076616,0.72569097,113700.0,113690.0,0.00447884]
[1754099077483,0.60246092,113700.0,113690.0,0.00447884]
[1754099077687,0.73822092,113700.0,113690.0,0.00447884]
[1754099078523,0.38946714,113700.0,113690.0,0.00447884]
[1754099079481,0.37693719,113700.0,113690.0,0.00447884]
[1754099079894,0.34834719,113700.0,113690.0,0.03982884]
[1754099081406,0.69710097,113700.0,113690.0,0.03982884]
[1754099081798,0.69710097,113700.0,113690.0,0.04291884]
[1754099084333,0.69706097,113700.0,113690.0,0.04291884]
[1754099084531,0.34830719,113700.0,113690.0,0.04291884]
[1754099085500,0.43250708,113700.0,113690.0,0.04291884]
[1754099085711,0.34830719,113700.0,113690.0,0.04291884]
[1754099087122,0.34830719,113700.0,113690.0,0.04499884]
[1754099088275,0.21258719,113700.0,113690.0,0.04499884]
[1754099088489,0.34830719,113700.0,113690.0,0.04499884]
[1754099089573,0.34826719,113700.0,113690.0,0.04499884]
[1754099095168,0.36738207,113700.0,113690.0,0.04499884]
[1754099095376,0.34826719,113700.0,113690.0,0.04499884]
[1754099096415,0.34822719,113700.0,113690.0,0.04499884]
[1754099098849,0.15729156,113700.0,113690.0,0.04499884]
[1754099099007,0.33319305,113700.0,113690.0,0.04499884]
[1754099102456,0.15729156,113700.0,113690.0,0.39375262]
[1754099102639,0.02165156,113700.0,113690.0,0.39375262]
[1754099102877,0.02165156,113700.0,113690.0,0.52935262]
[1754099103102,0.34721039,113710.0,113690.0,0.52935262]
[1754099103312,0.33833336,113710.0,113700.0,0.38761378]
[1754099103754,0.33833336,113710.0,113700.0,0.38961378]
[1754099103939,0.37324963,113710.0,113700.0,0.38961378]
[1754099104067,0.19736135,113710.0,113700.0,0.38961378]
[1754099104696,0.06176135,113710.0,113700.0,0.39061378]
[1754099104914,0.1356,113710.0,113700.0,0.39061378]
[1754099105117,0.52471585,113720.0,113700.0,0.39061378]
[1754099105310,0.52471585,113720.0,113700.0,0.35275378]
[1754099105523,0.52471585,113720.0,113710.0,0.03886]
[1754099105726,0.66031585,113720.0,113710.0,0.04086]
[1754099106352,0.55989693,113720.0,113710.0,0.04086]
[1754099106553,0.69549693,113720.0,113710.0,0.04086]
[1754099107219,0.35549693,113720.0,113710.0,0.04086]
[1754099107614,0.21989693,113720.0,113710.0,0.04086]
[1754099107816,0.35549693,113720.0,113710.0,0.04086]
[1754099108375,0.21981297,113720.0,113710.0,0.04086]
[1754099108590,0.35541297,113720.0,113710.0,0.04086]
[1754099111801,0.70416675,113720.0,113710.0,0.04086]
[1754099112361,0.70412675,113720.0,113690.0,0.16250684]
[1754099112702,0.17588602,113710.0,113700.0,0.38761378]
[1754099112936,0.17588602,113710.0,113700.0,0.04086]
[1754099114146,0.17588602,113710.0,113700.0,0.04186]
[1754099114448,0.17588602,113710.0,113700.0,0.04286]
[1754099116017,0.31140602,113710.0,113700.0,0.04286]
[1754099117108,0.33821527,113710.0,113700.0,0.04286]
[1754099119769,0.79850894,113710.0,113700.0,0.002]
[1754099123485,0.88270883,113710.0,113700.0,0.002]
[1754099124502,0.56038805,113710.0,113700.0,0.002]
[1754099124701,0.90914183,113710.0,113700.0,0.002]
[1754099125584,0.56038805,113710.0,113700.0,0.002]
[1754099125899,0.82494194,113710.0,113700.0,0.002]
[1754099126363,0.47618816,113710.0,113700.0,0.002]
[1754099126589,0.79850894,113710.0,113700.0,0.002]
[1754099131142,0.77116894,113710.0,113700.0,0.038]
[1754099131829,0.79856894,113710.0,113700.0,0.00518]
[1754099131969,0.79856894,113710.0,113700.0,0.038]
[1754099132393,0.77116894,113710.0,113700.0,0.038]
[1754099134152,0.79760094,113710.0,113700.0,0.038]
[1754099135003,0.22912727,113710.0,113700.0,0.04017]
[1754099135263,0.71332105,113710.0,113700.0,0.04017]
[1754099135660,0.68688905,113710.0,113700.0,0.04017]
[1754099139067,0.33813527,113710.0,113700.0,0.04017]
[1754099139310,0.20269527,113710.0,113700.0,0.04017]
[1754099139558,0.02680925,113710.0,113700.0,0.38892378]
[1754099139979,0.38164497,113720.0,113700.0,0.38892378]
[1754099140228,0.02679364,113710.0,113700.0,0.35292378]
[1754099140432,0.38164497,113720.0,113700.0,0.35292378]
[1754099140640,0.35521297,113720.0,113700.0,0.35292378]
[1754099140850,0.35521297,113720.0,113710.0,0.036]
[1754099141250,0.35521297,113720.0,113710.0,0.03817]
[1754099142340,0.78816664,113720.0,113710.0,0.03817]
[1754099142545,0.70396675,113720.0,113710.0,0.03817]
[1754099152414,0.35521297,113720.0,113710.0,0.03817]
[1754099152622,0.70396675,113720.0,113710.0,0.03817]
[1754099160710,0.51933486,113720.0,113710.0,0.03817]
[1754099161961,0.17058108,113720.0,113710.0,0.03817]
[1754099162376,0.69520541,113720.0,113710.0,0.03817]
[1754099165151,0.34645163,113720.0,113710.0,0.03817]
[1754099165370,0.69520541,113720.0,113710.0,0.03817]
[1754099168627,0.7794053,113720.0,113710.0,0.03817]
[1754099168834,0.69520541,113720.0,113710.0,0.03817]
[1754099180115,0.62738412,113720.0,113710.0,0.03817]
[1754099182801,0.66395579,113720.0,113710.0,0.03817]
[1754099187369,0.31520201,113720.0,113710.0,0.03817]
[1754099187826,0.66395579,113720.0,113710.0,0.03817]
[1754099188037,0.31520201,113720.0,113710.0,0.03817]
[1754099188261,0.66395579,113720.0,113710.0,0.03817]
[1754099188483,0.52052545,113720.0,113710.0,0.03817]
[1754099188658,0.17177167,113720.0,113710.0,0.03817]
[1754099190866,0.52052545,113720.0,113710.0,0.03817]
[1754099193862,0.17177167,113720.0,113710.0,0.03817]
[1754099194947,0.52052545,113720.0,113710.0,0.03817]
[1754099196315,0.52152545,113720.0,113710.0,0.03917]
[1754099200755,0.17277167,113720.0,113710.0,0.03917]
[1754099203813,0.03757167,113720.0,113710.0,0.56399473]
[1754099204029,0.03757167,113720.0,113710.0,0.73768218]
[1754099204358,0.03757167,113720.0,113710.0,0.56179616]
[1754099204843,0.03657167,113720.0,113710.0,0.56179616]
[1754099205189,1.11488366,113740.0,113710.0,0.56479616]
[1754099205395,0.70476593,113740.0,113720.0,0.03582]
[1754099206054,0.73108593,113740.0,113720.0,0.03582]
[1754099207205,0.55092887,113730.0,113720.0,0.001]
[1754099208576,0.55092887,113730.0,113720.0,0.003]
[1754099209037,0.20217509,113730.0,113720.0,0.002]
[1754099209241,0.55092887,113730.0,113720.0,0.002]
[1754099209381,0.55092887,113730.0,113720.0,0.004]
[1754099210365,0.52460887,113730.0,113720.0,0.0418]
[1754099212742,0.98388254,113730.0,113720.0,0.004]
[1754099212980,1.32388254,113730.0,113720.0,0.004]
[1754099213759,1.32388254,113730.0,113720.0,0.002]
[1754099213963,0.17588602,113710.0,113700.0,0.17082]
[1754099214163,0.17588602,113710.0,113700.0,0.12199989]
[1754099214817,0.17588602,113710.0,113700.0,0.0378]
[1754099215277,0.5246398,113710.0,113700.0,0.0408]
[1754099215798,0.60936645,113710.0,113700.0,0.003]
[1754099216220,0.02579,113710.0,113700.0,0.006]
[1754099216457,0.5504298,113710.0,113700.0,0.006]
[1754099216847,0.5504298,113710.0,113700.0,0.003]
[1754099216989,0.5246398,113710.0,113700.0,0.03535]
[1754099217192,0.30769356,113710.0,113700.0,0.03735]
[1754099218261,0.17588602,113710.0,113700.0,0.03735]
[1754099218459,0.17588602,113710.0,113700.0,0.03935]
[1754099218973,0.20184739,113710.0,113700.0,0.03935]
[1754099220813,0.55060117,113710.0,113700.0,0.03935]
[1754099221012,0.20184739,113710.0,113700.0,0.03935]
[1754099222342,1.43354473,113710.0,113700.0,0.004]
[1754099222586,1.45997773,113710.0,113700.0,0.004]
[1754099222800,1.11122395,113710.0,113700.0,0.004]
[1754099223236,1.11122395,113710.0,113700.0,0.002]
[1754099223450,0.51590149,113700.0,113690.0,0.00047884]
[1754099223670,1.02540527,113700.0,113690.0,0.00047884]
[1754099224584,1.37415905,113700.0,113690.0,0.00047884]
[1754099224794,1.37515905,113700.0,113690.0,0.00047884]
[1754099225016,1.0652286,113700.0,113690.0,0.00047884]
[1754099225267,1.0917525,113700.0,113690.0,0.00047884]
[1754099227081,1.1181865,113700.0,113690.0,0.00047884]
[1754099229816,1.0916626,113700.0,113690.0,0.00047884]
[1754099230033,0.70408549,113700.0,113690.0,0.00047884]
[1754099230258,1.0916626,113700.0,113690.0,0.00047884]
[1754099231646,1.19331151,113700.0,113690.0,0.00047884]
[1754099232006,1.21675248,113700.0,113690.0,0.00047884]
[1754099232208,1.27568913,113700.0,113690.0,0.00047884]
[1754099236851,1.32857913,113700.0,113690.0,0.00047884]
[1754099238736,1.26964248,113700.0,113690.0,0.00047884]
[1754099238949,1.15003249,113700.0,113690.0,0.03798884]
[1754099239159,0.62753538,113700.0,113690.0,0.03798884]
[1754099239357,0.76245538,113700.0,113690.0,0.03798884]
[1754099241068,0.20333549,113700.0,113690.0,0.03798884]
[1754099241275,0.001,113700.0,113690.0,0.08054544]
[1754099241888,0.001,113700.0,113690.0,0.03798884]
[1754099261937,0.001,113700.0,113690.0,0.38666012]
[1754099266240,0.001,113700.0,113690.0,0.03798884]
[1754099266447,0.001,113700.0,113690.0,0.38666012]
[1754099273135,0.55051867,113710.0,113690.0,0.38666012]
[1754099273355,0.55051867,113710.0,113700.0,0.03824]
[1754099274618,0.20284739,113710.0,113700.0,0.03824]
[1754099274849,0.55151867,113710.0,113700.0,0.03824]
[1754099277428,0.20284739,113710.0,113700.0,0.03824]
[1754099277648,0.55151867,113710.0,113700.0,0.0404]
[1754099278261,0.20284739,113710.0,113700.0,0.0404]
[1754099278451,0.55151867,113710.0,113700.0,0.0404]
[1754099280458,0.20284739,113710.0,113700.0,0.0404]
[1754099280681,0.55151867,113710.0,113700.0,0.0404]
[1754099281209,0.20284739,113710.0,113700.0,0.0404]
[1754099281411,0.55151867,113710.0,113700.0,0.0404]
[1754099282714,0.20284739,113710.0,113700.0,0.0404]
[1754099282915,0.55151867,113710.0,113700.0,0.0404]
[1754099284095,0.55151867,113710.0,113700.0,0.87246256]
[1754099284096,0.02696137,113710.0,113700.0,0.87246256]
[1754099284308,0.02696137,113710.0,113700.0,0.95666245]
[1754099284536,0.001,113710.0,113700.0,1.13256394]
[1754099285136,0.001,113710.0,113700.0,1.13556394]
[1754099286011,0.51585624,113730.0,113700.0,1.13556394]
[1754099286222,0.51585624,113730.0,113720.0,0.34867128]
[1754099286437,0.51585624,113730.0,113720.0,0.52403128]
[1754099286672,0.17587347,113720.0,113700.0,0.47739117]
[1754099286897,0.17587347,113720.0,113710.0,0.1732]
[1754099287132,0.51587347,113720.0,113710.0,0.1732]
[1754099287554,0.51587347,113720.0,113710.0,0.17536]
[1754099289097,0.51587347,113720.0,113710.0,0.17736]
[1754099291580,0.51587347,113720.0,113710.0,0.17936]
[1754099301306,0.34,113720.0,113710.0,0.17936]
[1754099301983,0.51587055,113720.0,113710.0,0.17936]
[1754099303809,0.35452296,113740.0,113710.0,0.5511601]
[1754099304026,0.34,113730.0,113720.0,0.4103201]
[1754099304242,0.35452296,113740.0,113720.0,0.4124801]
[1754099304383,0.69452296,113740.0,113730.0,0.03544]
[1754099304593,0.5013161,113740.0,113730.0,0.04066]
[1754099304805,0.33718455,113740.0,113730.0,0.04066]
[1754099305007,0.34597653,113740.0,113730.0,0.04066]
[1754099305218,0.68597653,113740.0,113730.0,0.04066]
[1754099305640,0.68597653,113740.0,113730.0,0.04080378]
[1754099306263,0.55137653,113740.0,113730.0,0.17536378]
[1754099306691,0.55237653,113740.0,113730.0,0.17536378]
[1754099316680,0.55237653,113740.0,113730.0,0.17322378]
[1754099316847,0.86598534,113740.0,113730.0,0.17322378]
[1754099318931,0.55237653,113740.0,113730.0,0.17322378]
[1754099322358,0.55237653,113740.0,113730.0,0.17536378]
[1754099322573,0.68685653,113740.0,113730.0,0.17536378]
[1754099322770,0.55237653,113740.0,113730.0,0.17536378]
[1754099323004,0.68685653,113740.0,113730.0,0.17536378]
[1754099323218,0.5021961,113740.0,113730.0,0.17536378]
[1754099324787,0.3677161,113740.0,113730.0,0.17536378]
[1754099328322,0.3677161,113740.0,113730.0,0.45415666]
[1754099328602,0.3677161,113740.0,113730.0,0.51715934]
[1754099329107,0.3677161,113740.0,113730.0,0.17536378]
[1754099331773,0.0277161,113740.0,113730.0,0.17536378]
[1754099333902,0.0277161,113740.0,113730.0,0.45415666]
[1754099335565,0.0277161,113740.0,113730.0,0.17536378]
[1754099338422,0.0277161,113740.0,113730.0,0.71421164]
[1754099338646,0.0277161,113740.0,113730.0,0.79841153]
[1754099339688,0.0277161,113740.0,113730.0,0.80141153]
[1754099341043,0.0277161,113740.0,113730.0,1.14955303]
[1754099341491,0.0267161,113740.0,113730.0,1.14955303]
[1754099341903,0.68312342,113770.0,113730.0,1.15834578]
[1754099342123,0.58679506,113770.0,113750.0,0.31346719]
[1754099342343,0.33959719,113760.0,113740.0,0.11919989]
[1754099342569,0.20194473,113760.0,113750.0,0.13436]
[1754099342756,0.51541192,113760.0,113750.0,0.13436]
[1754099343015,0.20194473,113760.0,113750.0,0.13436]
[1754099343450,0.51541192,113760.0,113750.0,0.13436]
[1754099344122,0.20194473,113760.0,113750.0,0.13436]
[1754099344331,0.51541192,113760.0,113750.0,0.13436]
[1754099345652,0.51541192,113760.0,113750.0,0.13536]
[1754099348433,0.52806866,113760.0,113750.0,0.13536]
[1754099348684,0.52806866,113760.0,113750.0,0.001]
[1754099348685,1.18153585,113760.0,113750.0,0.001]
[1754099348895,1.45294574,113760.0,113750.0,0.001]
[1754099349120,1.47936674,113760.0,113750.0,0.001]
[1754099349746,0.17582417,113750.0,113740.0,0.13432]
[1754099349918,0.48929136,113750.0,113740.0,0.13432]
[1754099350138,0.51583963,113740.0,113730.0,0.13446378]
[1754099351362,0.51583963,113740.0,113730.0,0.13646378]
[1754099352040,0.51583963,113740.0,113730.0,0.16843378]
[1754099352405,0.51583963,113740.0,113730.0,0.17146378]
[1754099353059,0.51583963,113740.0,113730.0,0.17346378]
[1754099357613,0.55343169,113740.0,113730.0,0.17346378]
[1754099357857,0.85801676,113740.0,113730.0,0.13846378]
[1754099358309,0.57924169,113740.0,113730.0,0.13846378]
[1754099358544,0.85801676,113740.0,113730.0,0.00414378]
[1754099358755,0.85801676,113740.0,113730.0,0.13846378]
[1754099358974,0.57924169,113740.0,113730.0,0.13846378]
[1754099360093,0.57924169,113740.0,113730.0,0.13646378]
[1754099360270,0.57924169,113740.0,113730.0,0.13446378]
[1754099360509,0.57924169,113740.0,113730.0,0.13546378]
[1754099362607,0.57924169,113740.0,113730.0,0.00114378]
[1754099363646,0.54164963,113740.0,113730.0,0.00114378]
[1754099363846,0.51583963,113740.0,113730.0,0.03614378]
[1754099369536,0.51583963,113740.0,113730.0,0.03810378]
[1754099370932,0.82947895,113740.0,113730.0,0.03810378]
[1754099376840,0.51583963,113740.0,113730.0,0.03810378]
[1754099379509,0.91367884,113740.0,113730.0,0.03810378]
[1754099380826,0.51583963,113740.0,113730.0,0.03810378]
[1754099381049,0.82947895,113740.0,113730.0,0.03810378]
[1754099396055,0.51583963,113740.0,113730.0,0.03810378]
[1754099398233,0.82947895,113740.0,113730.0,0.03810378]
[1754099398740,0.51583963,113740.0,113730.0,0.03810378]
[1754099398941,0.65363932,113740.0,113730.0,0.03810378]
[1754099399380,0.34,113740.0,113730.0,0.03810378]
[1754099399591,0.60003952,113740.0,113730.0,0.03810378]
[1754099400582,0.34,113740.0,113730.0,0.03810378]
[1754099400816,0.34,113740.0,113730.0,0.3517431]
[1754099401717,0.64734349,113750.0,113730.0,0.3517431]
[1754099401942,0.30998417,113750.0,113740.0,0.03578]
[1754099402193,0.30998417,113750.0,113740.0,0.03777]
[1754099402398,0.62362349,113750.0,113740.0,0.03777]
[1754099402636,0.17582417,113750.0,113740.0,0.03777]
[1754099402862,0.71660437,113760.0,113740.0,0.35140932]
[1754099403097,0.40296505,113760.0,113740.0,0.35140932]
[1754099403313,0.71660437,113760.0,113750.0,0.03578]
[1754099403777,0.40296505,113760.0,113750.0,0.03777]
[1754099404002,0.26880505,113760.0,113750.0,0.03777]
[1754099404228,0.31876516,113760.0,113750.0,0.35140932]
[1754099404462,0.18460516,113760.0,113750.0,0.03777]
[1754099404918,0.18560516,113760.0,113750.0,0.03777]
[1754099405365,0.18760516,113760.0,113750.0,0.03777]
[1754099407775,0.003,113760.0,113750.0,0.35140932]
[1754099409556,0.001,113760.0,113750.0,0.35140932]
[1754099410354,0.36674034,113770.0,113750.0,0.35140932]
[1754099410591,0.36674034,113770.0,113760.0,0.03578]
[1754099411536,0.36674034,113770.0,113750.0,0.31363932]
[1754099411537,0.17581734,113760.0,113750.0,0.34941932]
[1754099411664,0.17581734,113760.0,113750.0,0.03777]
[1754099414115,0.17581734,113760.0,113750.0,0.03877]
[1754099418641,0.59849655,113760.0,113750.0,0.001]
[1754099421534,0.28485723,113760.0,113750.0,0.001]
[1754099421827,0.20065734,113760.0,113750.0,0.001]
[1754099422905,0.17581734,113760.0,113750.0,0.001]
[1754099423100,0.17581734,113760.0,113750.0,0.03678]
[1754099430123,0.17066948,113760.0,113750.0,0.03678]
[1754099434477,0.17066948,113760.0,113750.0,0.35041932]
[1754099434803,0.17066948,113760.0,113750.0,0.35239932]
[1754099438558,0.23258034,113770.0,113750.0,0.40105125]
[1754099438842,0.36666034,113770.0,113760.0,0.35090932]
[1754099439063,0.23258034,113770.0,113760.0,0.35288932]
[1754099439283,0.23258034,113770.0,113760.0,0.48696932]
[1754099441387,0.23358034,113770.0,113760.0,0.48696932]
[1754099441607,0.23258034,113770.0,113760.0,0.48696932]
[1754099441953,0.23358034,113770.0,113760.0,0.48696932]
[1754099443014,0.23358034,113770.0,113760.0,0.17333]
[1754099443226,0.23358034,113770.0,113760.0,0.48696932]
[1754099448415,0.04899731,113770.0,113760.0,0.48696932]
[1754099448825,0.22479057,113770.0,113760.0,0.48696932]
[1754099449912,0.04899731,113770.0,113760.0,0.48696932]
[1754099451020,0.04899731,113770.0,113760.0,0.53566625]
[1754099452305,0.04899731,113770.0,113760.0,0.48696932]
[1754099453878,0.22479057,113770.0,113760.0,0.48696932]
[1754099459135,0.04899731,113770.0,113760.0,0.48696932]
[1754099473782,0.04899731,113770.0,113760.0,0.80060864]
[1754099474257,0.04899731,113770.0,113760.0,0.48696932]
[1754099474841,0.02298692,113770.0,113760.0,0.93614696]
[1754099475631,0.02298692,113770.0,113760.0,0.96255896]
[1754099476477,0.02298692,113770.0,113760.0,0.96455896]
[1754099476819,0.02198692,113770.0,113760.0,0.96455896]
[1754099477019,0.31864981,113790.0,113760.0,0.96655896]
[1754099477261,0.18464981,113790.0,113780.0,0.31363932]
[1754099477614,0.18464981,113790.0,113780.0,0.35083932]
[1754099478326,0.18564981,113790.0,113780.0,0.35083932]
[1754099478523,0.18464981,113790.0,113780.0,0.3509831]
[1754099478735,0.18564981,113790.0,113780.0,0.3509831]
[1754099481844,0.19744877,113790.0,113780.0,0.3509831]
[1754099482140,0.22331232,113790.0,113780.0,0.3509831]
[1754099484308,0.22331232,113790.0,113780.0,0.03734378]
[1754099484696,0.22331232,113790.0,113780.0,0.3509831]
[1754099491709,0.22331232,113790.0,113780.0,0.03529378]
[1754099491710,0.62115153,113790.0,113780.0,0.03529378]
[1754099491898,0.64324153,113790.0,113780.0,0.00014378]
[1754099495442,0.55904164,113790.0,113780.0,0.00014378]
[1754099500303,0.67083164,113790.0,113780.0,0.03526378]
[1754099502195,0.13388,113790.0,113780.0,0.00316378]
[1754099502456,0.64540048,113790.0,113780.0,0.00014378]
[1754099502931,0.65418859,113790.0,113780.0,0.00014378]
[1754099503640,0.66617893,113790.0,113780.0,0.00014378]
[1754099504831,0.33044961,113790.0,113780.0,0.00014378]
[1754099505073,0.64408893,113790.0,113780.0,0.03526378]
[1754099506216,0.67115311,113790.0,113780.0,0.03526378]
[1754099522763,0.35751379,113790.0,113780.0,0.03526378]
[1754099525599,0.67115311,113790.0,113780.0,0.03526378]
[1754099527023,0.35751379,113790.0,113780.0,0.03526378]
[1754099528067,0.35751379,113790.0,113780.0,0.03733378]
[1754099531828,0.44171368,113790.0,113780.0,0.03733378]
[1754099532411,0.755353,113790.0,113780.0,0.03733378]
[1754099535406,0.755353,113790.0,113780.0,0.03526378]
[1754099535620,0.779903,113790.0,113780.0,0.00014378]
[1754099535913,0.806317,113790.0,113780.0,0.00014378]
[1754099536784,0.89051689,113790.0,113780.0,0.00014378]
[1754099537884,0.86596689,113790.0,113780.0,0.00014378]
[1754099538086,0.86596689,113790.0,113780.0,0.03395378]
[1754099538364,1.20415621,113790.0,113780.0,0.00014378]
[1754099538595,1.56160523,113790.0,113780.0,0.00014378]
[1754099538812,1.61447523,113790.0,113780.0,1e-08]
[1754099539036,1.63343224,113790.0,113780.0,1e-08]